bitfinex/quotes_SOLUSD_20250819
["timestamp","ask_amount","ask_price","bid_price","bid_amount"]
[1755632223666,0.72,178.34,178.32,41.1]
[1755632224757,0.65,178.33,178.31,13.73775558]
[1755632224985,0.65,178.33,178.31,41.08]
[1755632224986,11.28906826,178.32,178.31,41.08]
[1755632225187,11.93906826,178.32,178.31,41.08]
[1755632225371,0.65,178.32,178.31,41.08]
[1755632226187,0.65,178.36,178.33,0.14216157]
[1755632226487,0.65,178.35,178.34,41.08]
[1755632226668,0.65,178.37,178.34,41.08]
[1755632226863,0.65,178.36,178.34,41.08]
[1755632227391,0.03,178.41,178.34,41.08]
[1755632227570,11.28906826,178.39,178.34,41.08]
[1755632227987,0.03,178.36,178.34,52.36906826]
[1755632228868,0.03,178.36,178.34,41.08]
[1755632229070,0.68,178.36,178.34,41.08]
[1755632229270,0.03,178.36,178.34,41.08]
[1755632229491,0.65,178.35,178.31,13.73775558]
[1755632229667,0.65,178.35,178.32,41.08]
[1755632229973,0.65,178.34,178.32,41.08]
[1755632230176,0.68,178.36,178.32,41.08]
[1755632230383,0.65,178.35,178.32,41.08]
[1755632230692,11.28906826,178.33,178.28,24.88466227]
[1755632230993,0.03,178.36,178.32,11.28906826]
[1755632231189,0.03,178.36,178.33,52.36906826]
[1755632231377,0.68,178.36,178.33,41.08]
[1755632232096,0.03,178.36,178.33,52.36906826]
[1755632232872,0.03,178.36,178.34,11.28906826]
[1755632233069,0.03,178.36,178.35,41.08]
[1755632233979,0.03,178.36,178.35,66.82682384]
[1755632234582,0.03,178.36,178.35,66.10682384]
[1755632235094,0.03,178.36,178.33,11.28906826]
[1755632235264,0.03,178.36,178.35,41.08]
[1755632235979,0.03,178.36,178.35,66.82682384]
[1755632241096,0.03,178.36,178.35,69.07369884]
[1755632242174,0.03,178.36,178.35,74.68065146]
[1755632242795,0.03,178.41,178.39,39.59559401]
[1755632243000,0.03,178.41,178.4,66.08682384]
[1755632243203,0.03,178.41,178.4,66.80682384]
[1755632243580,0.03,178.41,178.4,68.33306884]
[1755632243778,0.03,178.41,178.4,66.08682384]
[1755632243993,0.03,178.41,178.4,78.09589284]
[1755632244169,0.03,178.41,178.4,77.37589284]
[1755632244368,0.03,178.41,178.4,66.08682384]
[1755632245798,0.03,178.41,178.4,52.34906826]
[1755632245979,0.68,178.41,178.4,41.06]
[1755632247674,0.68,178.41,178.4,41.04]
[1755632248078,11.96906826,178.41,178.4,41.04]
[1755632248578,11.96906826,178.41,178.39,41.04]
[1755632248792,11.93906826,178.4,178.39,41.04]
[1755632248988,11.93906826,178.4,178.33,11.289069]
[1755632248989,0.65,178.4,178.33,11.289069]
[1755632249187,11.28906826,178.36,178.31,13.59559401]
[1755632249396,0.65,178.35,178.32,41.04]
[1755632249710,0.68,178.41,178.34,11.28906826]
[1755632250003,0.68,178.41,178.37,11.28906826]
[1755632250302,0.68,178.41,178.38,41.04]
[1755632250489,0.03,178.41,178.39,11.28906826]
[1755632250683,0.03,178.41,178.4,41.04]
[1755632250923,0.03,178.41,178.4,52.32906826]
[1755632251114,0.03,178.41,178.4,66.78682384]
[1755632252380,0.03,178.41,178.4,66.06682384]
[1755632252878,0.68,178.41,178.4,41.04]
[1755632254607,11.96906826,178.41,178.4,41.04]
[1755632255105,11.96906826,178.41,178.34,13.59559401]
[1755632255417,11.28906826,178.38,178.35,41.04]
[1755632255627,0.03,178.41,178.35,41.04]
[1755632255628,0.68,178.37,178.35,41.04]
[1755632255991,11.28906826,178.39,178.35,41.04]
[1755632255992,0.68,178.39,178.35,41.04]
[1755632256315,11.96906826,178.39,178.35,41.04]
[1755632256828,0.68,178.38,178.35,41.04]
[1755632257522,0.68,178.4,178.35,52.32906826]
[1755632257700,0.03,178.41,178.37,25.02682384]
[1755632257892,0.03,178.41,178.38,41.04]
[1755632258598,11.96906826,178.4,178.38,41.04]
[1755632258810,0.68,178.4,178.38,41.04]
[1755632260204,11.96906826,178.4,178.38,41.04]
[1755632260519,11.96906826,178.39,178.38,41.04]
[1755632261016,0.68,178.39,178.38,41.04]
[1755632261209,11.31906826,178.41,178.38,41.04]
[1755632261412,0.03,178.41,178.39,0.7]
[1755632261726,11.96906826,178.4,178.35,14.29559401]
[1755632262019,11.96906826,178.39,178.36,41.02]
[1755632263904,0.68,178.39,178.36,41.02]
[1755632264234,11.28906826,178.4,178.36,41.02]
[1755632264437,11.96906826,178.4,178.36,41.02]
[1755632264602,11.96906826,178.39,178.36,41.02]
[1755632266131,0.68,178.39,178.36,41.02]
[1755632266449,11.96906826,178.39,178.36,41.02]
[1755632266936,11.28906826,178.38,178.36,41.02]
[1755632268006,11.96906826,178.39,178.36,41.02]
[1755632268206,11.28906826,178.39,178.36,41.02]
[1755632268416,11.28906826,178.39,178.36,41.72]
[1755632268818,0.03,178.41,178.37,0.7]
[1755632269031,0.03,178.41,178.36,52.30906826]
[1755632269234,0.03,178.41,178.38,0.7]
[1755632269542,0.03,178.41,178.39,41.02]
[1755632270711,0.03,178.41,178.4,0.7]
[1755632271606,0.03,178.41,178.39,41.02]
[1755632272206,0.03,178.41,178.39,41.72]
[1755632273426,0.03,178.41,178.39,41.02]
[1755632273638,0.03,178.41,178.4,25.72682384]
[1755632277244,0.03,178.41,178.4,31.332205]
[1755632277730,0.03,178.41,178.4,25.72682384]
[1755632278242,0.03,178.41,178.4,14.43775558]
[1755632280535,0.03,178.41,178.4,31.89274311]
[1755632280713,0.03,178.43,178.42,39.73775558]
[1755632280912,0.03,178.43,178.42,92.02682384]
[1755632281134,0.03,178.43,178.42,92.72682384]
[1755632281864,0.03,178.43,178.42,98.33157667]
[1755632282243,0.03,178.43,178.42,100.57719067]
[1755632282620,0.03,178.45,178.44,39.59559401]
[1755632282824,0.03,178.45,178.44,92.00682384]
[1755632283031,0.03,178.45,178.44,92.70682384]
[1755632284364,0.03,178.45,178.44,88.6205691]
[1755632284859,0.03,178.45,178.44,95.8233831]
[1755632286258,0.03,178.45,178.44,101.42750773]
[1755632286639,0.03,178.45,178.44,95.8233831]
[1755632286836,0.03,178.45,178.44,20.79840801]
[1755632287058,0.72,178.45,178.43,20.79840753]
[1755632287228,0.72,178.45,178.44,40.98]
[1755632287428,0.03,178.45,178.44,48.87281352]
[1755632287627,0.03,178.45,178.44,62.46840753]
[1755632287853,0.72,178.45,178.41,26.0]
[1755632288154,0.03,178.45,178.42,48.16281352]
[1755632288330,0.03,178.45,178.43,48.16281352]
[1755632288531,0.03,178.45,178.44,7.20281352]
[1755632290661,0.72,178.45,178.43,48.16281352]
[1755632291150,0.69,178.44,178.43,40.96]
[1755632291379,7.89281352,178.44,178.43,40.96]
[1755632291545,7.89281352,178.44,178.38,0.06]
[1755632291853,7.20281352,178.39,178.38,0.06]
[1755632292151,7.20281352,178.39,178.36,40.96]
[1755632292356,7.20281352,178.37,178.35,40.96]
[1755632292556,7.89281352,178.36,178.34,40.96]
[1755632292742,26.0,178.4,178.34,40.96]
[1755632292743,0.69,178.37,178.34,40.96]
[1755632293053,0.69,178.4,178.36,7.20281352]
[1755632293261,0.69,178.4,178.35,13.59559401]
[1755632293262,0.69,178.42,178.39,7.20281352]
[1755632293429,0.69,178.41,178.4,40.96]
[1755632293623,7.89281352,178.41,178.39,40.96]
[1755632293823,7.89281352,178.4,178.39,40.96]
[1755632294049,7.89281352,178.4,178.32,0.06]
[1755632294234,26.0,178.43,178.33,40.96]
[1755632294235,7.20281352,178.37,178.33,40.96]
[1755632294424,0.69,178.4,178.35,11.22307205]
[1755632294639,11.22307205,178.41,178.36,40.96]
[1755632294846,0.69,178.39,178.36,40.96]
[1755632295135,0.69,178.41,178.36,52.18307205]
[1755632295337,0.69,178.41,178.38,11.22307205]
[1755632295546,37.22307205,178.43,178.39,40.96]
[1755632295547,11.22307205,178.43,178.39,40.96]
[1755632295935,0.69,178.42,178.39,40.96]
[1755632296137,0.69,178.44,178.41,11.22307205]
[1755632296630,0.69,178.44,178.42,40.96]
[1755632297739,0.03,178.45,178.42,40.96]
[1755632297940,0.72,178.45,178.42,40.96]
[1755632298357,0.69,178.44,178.42,40.96]
[1755632298641,0.69,178.43,178.42,40.96]
[1755632299048,0.72,178.45,178.42,52.18307205]
[1755632299236,0.03,178.45,178.42,52.18307205]
[1755632299431,0.72,178.45,178.42,40.96]
[1755632299644,0.03,178.45,178.42,52.18307205]
[1755632299962,0.03,178.45,178.42,52.87307205]
[1755632300178,0.03,178.45,178.44,11.22307205]
[1755632300744,0.03,178.45,178.44,11.91307205]
[1755632301254,0.03,178.45,178.44,12.05523362]
[1755632301667,0.03,178.45,178.44,0.14216157]
[1755632301879,0.72,178.45,178.39,26.69]
[1755632302058,0.72,178.45,178.4,65.77866606]
[1755632302262,0.72,178.45,178.41,0.14216157]
[1755632302666,0.03,178.45,178.41,0.14216157]
[1755632302868,11.91307205,178.44,178.4,40.96]
[1755632303074,0.69,178.44,178.4,40.96]
[1755632303377,0.69,178.43,178.4,40.96]
[1755632304475,0.03,178.45,178.41,11.91307205]
[1755632304680,0.03,178.45,178.42,11.22307205]
[1755632304876,0.03,178.45,178.43,52.18307205]
[1755632305083,0.03,178.45,178.43,52.87307205]
[1755632305561,0.03,178.45,178.44,11.22307205]
[1755632305882,0.03,178.45,178.44,11.91307205]
[1755632306083,0.03,178.45,178.43,40.96]
[1755632306758,0.69,178.44,178.43,40.94]
[1755632306952,11.91307205,178.44,178.43,40.94]
[1755632307562,11.91307205,178.44,178.39,11.22307205]
[1755632307776,0.69,178.43,178.41,40.94]
[1755632309285,11.91307205,178.42,178.41,40.94]
[1755632309467,11.22307205,178.43,178.41,40.94]
[1755632309794,11.91307205,178.43,178.41,40.94]
[1755632309957,11.91307205,178.42,178.41,40.94]
[1755632310282,11.91307205,178.42,178.34,0.06]
[1755632310465,11.22307205,178.37,178.34,0.06]
[1755632310660,11.22307205,178.35,178.34,0.06]
[1755632310857,11.91307205,178.35,178.34,0.06]
[1755632311454,0.69,178.35,178.34,0.06]
[1755632311654,11.22307205,178.36,178.34,0.06]
[1755632311954,0.69,178.36,178.34,0.06]
[1755632312153,11.91307205,178.36,178.34,0.06]
[1755632312353,11.22307205,178.35,178.34,0.06]
[1755632313171,11.91307205,178.35,178.34,0.06]
[1755632320399,11.22307205,178.35,178.34,0.06]
[1755632320566,37.22307205,178.37,178.34,0.06]
[1755632320888,11.22307205,178.36,178.34,0.06]
[1755632321069,11.22307205,178.37,178.34,0.06]
[1755632321270,11.93307205,178.38,178.34,0.77]
[1755632321467,11.22307205,178.38,178.34,0.77]
[1755632322186,157.71,178.4,178.35,0.71]
[1755632322187,11.22307205,178.39,178.35,0.71]
[1755632322389,142.93307205,178.4,178.35,0.71]
[1755632322969,11.96307205,178.42,178.36,11.93307205]
[1755632323190,0.03,178.42,178.39,11.22307205]
[1755632323390,0.03,178.42,178.36,0.71]
[1755632323570,0.03,178.42,178.36,11.93307205]
[1755632323571,11.22307205,178.41,178.36,11.93307205]
[1755632323769,11.96307205,178.42,178.36,11.93307205]
[1755632323971,11.22307205,178.38,178.34,0.06]
[1755632324368,11.22307205,178.38,178.34,0.77]
[1755632324885,11.93307205,178.38,178.34,0.77]
[1755632325399,11.22307205,178.39,178.35,0.71]
[1755632325566,11.22307205,178.39,178.34,0.06]
[1755632325762,11.93307205,178.38,178.34,0.06]
[1755632326190,11.22307205,178.35,178.34,0.06]
[1755632326578,11.93307205,178.35,178.34,0.06]
[1755632331196,17.25630163,178.35,178.34,0.06]
[1755632332498,17.25630163,178.35,178.32,0.06]
[1755632332499,26.0,178.33,178.32,0.06]
[1755632332698,37.22307205,178.33,178.32,0.06]
[1755632333074,37.93307205,178.33,178.32,0.06]
[1755632336608,51.52866606,178.33,178.32,0.06]
[1755632336820,24.81866606,178.31,178.3,0.06]
[1755632337094,11.22307205,178.27,178.25,0.77]
[1755632337298,11.22307205,178.27,178.25,0.06]
[1755632337484,11.22307205,178.27,178.26,0.71]
[1755632337680,11.22307205,178.28,178.26,0.71]
[1755632339505,11.22307205,178.28,178.27,0.71]
[1755632339704,11.22307205,178.28,178.25,0.06]
[1755632339888,11.22307205,178.28,178.26,0.71]
[1755632340279,11.22307205,178.27,178.25,0.06]
[1755632340476,11.22307205,178.26,178.25,0.06]
[1755632340912,11.93307205,178.26,178.25,0.06]
[1755632341203,37.93307205,178.26,178.25,0.06]
[1755632342001,26.71,178.26,178.25,0.06]
[1755632342308,41.65,178.29,178.25,0.06]
[1755632342510,7.22430359,178.26,178.25,0.06]
[1755632342713,7.22430359,178.27,178.25,0.06]
[1755632342885,7.22430359,178.27,178.25,0.77]
[1755632343207,26.0,178.29,178.26,0.71]
[1755632344706,131.71,178.31,178.26,0.71]
[1755632345203,131.71,178.31,178.25,0.06]
[1755632345410,7.22430359,178.3,178.27,0.65]
[1755632346484,7.94430359,178.33,178.28,0.65]
[1755632346685,7.94430359,178.33,178.27,7.22430359]
[1755632346686,7.22430359,178.29,178.25,0.71]
[1755632347019,7.22430359,178.26,178.25,0.06]
[1755632347314,7.22430359,178.27,178.25,0.06]
[1755632347692,7.22430359,178.26,178.25,0.06]
[1755632348716,0.3369,178.26,178.25,0.71]
[1755632349405,8.28120359,178.26,178.25,0.06]
[1755632350211,7.56120359,178.26,178.25,0.06]
[1755632350511,7.56120359,178.26,178.25,0.71]
[1755632350512,0.3369,178.26,178.25,0.71]
[1755632351508,0.3369,178.26,178.25,7.93430359]
[1755632353103,0.3369,178.26,178.25,0.71]
[1755632355494,0.3369,178.26,178.25,7.93430359]
[1755632359020,0.3369,178.26,178.25,0.71]
[1755632361707,0.3369,178.26,178.25,21.67205917]
[1755632362107,0.3369,178.26,178.25,14.44775558]
[1755632362317,0.3369,178.26,178.25,13.79775558]
[1755632362905,0.3369,178.26,178.25,21.67205917]
[1755632364444,0.3369,178.26,178.25,0.06]
[1755632364632,8.28120359,178.26,178.25,0.06]
[1755632367022,0.3369,178.26,178.25,0.06]
[1755632367225,8.28120359,178.26,178.25,0.06]
[1755632369013,0.3369,178.26,178.25,0.06]
[1755632369934,8.28120359,178.26,178.25,0.06]
[1755632373125,0.3369,178.26,178.25,0.06]
[1755632374244,1.0369,178.26,178.25,0.06]
[1755632374450,0.3369,178.26,178.25,0.06]
[1755632375540,0.3369,178.26,178.25,7.97430359]
[1755632376342,0.3369,178.26,178.25,14.48775558]
[1755632376658,0.3369,178.26,178.25,7.97430359]
[1755632377628,0.3369,178.26,178.25,21.71205917]
[1755632378137,0.3369,178.26,178.25,7.97430359]
[1755632379633,0.3369,178.26,178.25,21.71205917]
[1755632380652,0.3369,178.26,178.25,13.79775558]
[1755632380954,0.3369,178.26,178.25,21.71205917]
[1755632384953,0.3369,178.26,178.25,27.32215734]
[1755632385163,0.03,178.34,178.3,0.14216157]
[1755632385337,0.03,178.34,178.32,7.22430359]
[1755632385533,0.03,178.34,178.31,41.55]
[1755632385737,0.03,178.34,178.31,48.08430359]
[1755632385965,0.73,178.34,178.31,48.08430359]
[1755632386158,0.73,178.34,178.32,7.22430359]
[1755632386458,0.73,178.34,178.31,48.08430359]
[1755632386833,0.03,178.34,178.32,7.22430359]
[1755632387238,0.03,178.34,178.31,48.77430359]
[1755632387566,0.03,178.34,178.31,48.08430359]
[1755632388061,0.03,178.34,178.32,7.91430359]
[1755632388236,0.03,178.34,178.33,20.96205917]
[1755632388444,0.03,178.34,178.33,21.65205917]
[1755632389560,0.03,178.34,178.33,14.42775558]
[1755632389762,0.03,178.34,178.33,21.65205917]
[1755632390165,0.03,178.34,178.33,14.42775558]
[1755632390379,0.03,178.34,178.33,13.73775558]
[1755632390569,0.03,178.34,178.33,21.65205917]
[1755632390740,0.03,178.34,178.33,14.42775558]
[1755632390941,130.95430359,178.38,178.32,7.22430359]
[1755632391157,130.95430359,178.38,178.32,7.91430359]
[1755632391448,130.95430359,178.38,178.31,41.00216157]
[1755632391449,7.22430359,178.35,178.31,41.00216157]
[1755632391749,26.0,178.4,178.25,85.57000396]
[1755632391750,7.22430359,178.33,178.28,0.69]
[1755632391947,7.22430359,178.32,178.29,57.697247]
[1755632392179,7.22430359,178.33,178.29,40.84]
[1755632392751,7.22430359,178.32,178.29,40.84]
[1755632393268,7.89430359,178.31,178.29,40.84]
[1755632393475,26.0,178.37,178.29,40.84]
[1755632393476,7.89430359,178.3,178.29,40.84]
[1755632395070,7.89430359,178.3,178.26,40.82]
[1755632395253,7.89430359,178.29,178.26,40.82]
[1755632395689,7.22430359,178.29,178.26,40.82]
[1755632396894,0.67,178.28,178.25,0.06]
[1755632397193,7.22430359,178.26,178.25,0.06]
[1755632397490,7.22430359,178.29,178.25,0.06]
[1755632397660,0.67,178.33,178.25,7.97430359]
[1755632397844,0.67,178.33,178.26,0.69]
[1755632398050,7.22430359,178.31,178.26,0.69]
[1755632398250,0.67,178.33,178.27,0.69]
[1755632398450,7.22430359,178.31,178.27,0.69]
[1755632398853,7.22430359,178.31,178.25,0.20216157]
[1755632399065,7.22430359,178.29,178.25,0.06]
[1755632399383,7.22430359,178.28,178.25,0.06]
[1755632399872,7.22430359,178.29,178.25,0.06]
[1755632400041,7.22430359,178.3,178.26,0.69]
[1755632400656,33.22430359,178.31,178.26,0.69]
[1755632400862,7.22430359,178.3,178.26,0.69]
[1755632401091,7.89430359,178.29,178.25,0.06]
[1755632401247,7.22430359,178.29,178.25,0.06]
[1755632401445,7.22430359,178.29,178.25,0.75]
[1755632401649,7.89430359,178.29,178.25,0.06]
[1755632402951,7.89430359,178.31,178.26,0.69]
[1755632403386,7.22430359,178.32,178.27,0.69]
[1755632403553,0.67,178.32,178.27,0.69]
[1755632403759,7.22430359,178.32,178.28,0.69]
[1755632403984,150.4,178.34,178.29,0.69]
[1755632404192,7.22430359,178.33,178.29,0.69]
[1755632404505,7.87430359,178.33,178.28,40.82]
[1755632404661,7.87430359,178.32,178.28,40.82]
[1755632404860,7.22430359,178.32,178.28,41.53]
[1755632405053,7.87430359,178.32,178.28,40.82]
[1755632405252,7.22430359,178.31,178.28,40.82]
[1755632405486,7.87430359,178.32,178.28,40.82]
[1755632405806,33.25430359,178.34,178.29,0.71]
[1755632406102,0.03,178.34,178.3,0.71]
[1755632406674,0.03,178.34,178.29,7.22430359]
[1755632406675,7.90430359,178.34,178.29,7.22430359]
[1755632406879,7.87430359,178.33,178.28,40.82]
[1755632407116,7.25430359,178.34,178.29,0.71]
[1755632407293,0.03,178.34,178.29,7.93430359]
[1755632407618,0.03,178.34,178.3,0.71]
[1755632407818,0.03,178.34,178.31,7.22430359]
[1755632407977,0.03,178.34,178.31,7.93430359]
[1755632408177,0.03,178.34,178.32,41.53]
[1755632408394,0.03,178.34,178.32,40.82]
[1755632409698,7.90430359,178.34,178.32,40.82]
[1755632409903,0.65,178.33,178.32,40.82]
[1755632410596,7.87430359,178.33,178.29,40.8]
[1755632410793,0.03,178.34,178.29,40.8]
[1755632410794,0.65,178.32,178.29,40.8]
[1755632410999,7.22430359,178.3,178.29,40.8]
[1755632411208,7.87430359,178.3,178.25,0.06]
[1755632411423,7.22430359,178.27,178.25,0.06]
[1755632413418,7.87430359,178.29,178.25,0.06]
[1755632413826,7.22430359,178.3,178.26,0.71]
[1755632414114,7.22430359,178.31,178.27,0.71]
[1755632414321,7.22430359,178.31,178.25,14.50775558]
[1755632414322,7.22430359,178.3,178.25,14.50775558]
[1755632414836,7.22430359,178.29,178.25,0.77]
[1755632415409,26.0,178.32,178.25,0.06]
[1755632415614,0.03,178.34,178.29,7.22430359]
[1755632415829,7.25430359,178.34,178.29,48.73430359]
[1755632416038,7.25430359,178.34,178.3,0.71]
[1755632416334,7.22430359,178.31,178.29,40.8]
[1755632416716,7.87430359,178.33,178.29,40.8]
[1755632416918,7.25430359,178.34,178.3,0.71]
[1755632418008,7.25430359,178.34,178.29,40.8]
[1755632418227,7.90430359,178.34,178.29,41.51]
[1755632418837,7.22430359,178.33,178.29,41.51]
[1755632419651,7.90430359,178.34,178.29,41.51]
[1755632420608,7.25430359,178.34,178.29,40.8]
[1755632420950,7.25430359,178.34,178.3,0.77]
[1755632421239,0.03,178.34,178.31,0.71]
[1755632421462,0.03,178.34,178.3,0.77]
[1755632421816,0.03,178.34,178.3,0.06]
[1755632422047,0.03,178.34,178.31,0.71]
[1755632422560,7.90430359,178.34,178.3,0.06]
[1755632423227,0.03,178.34,178.3,0.06]
[1755632423426,0.03,178.34,178.31,0.71]
[1755632423623,0.03,178.34,178.3,7.28430359]
[1755632423938,0.03,178.34,178.32,0.71]
[1755632425516,0.03,178.34,178.3,0.06]
[1755632425735,7.25430359,178.34,178.3,0.77]
[1755632425929,7.25430359,178.34,178.31,0.71]
[1755632426126,0.03,178.34,178.32,0.71]
[1755632428144,0.03,178.34,178.33,48.71430359]
[1755632428440,0.03,178.34,178.33,62.45205917]
[1755632429613,0.03,178.34,178.33,40.78]
[1755632429822,7.25430359,178.34,178.33,40.78]
[1755632430950,7.90430359,178.34,178.3,41.55]
[1755632431262,7.22430359,178.31,178.3,0.06]
[1755632431621,7.87430359,178.31,178.3,0.06]
[1755632431851,33.87430359,178.31,178.3,0.06]
[1755632432020,37.65167611,178.31,178.3,0.06]
[1755632432220,52.41167611,178.31,178.3,0.06]
[1755632432459,26.0,178.29,178.28,0.06]
[1755632432619,37.00167611,178.29,178.28,0.06]
[1755632432824,37.65167611,178.29,178.28,0.06]
[1755632433018,7.22430359,178.29,178.28,0.06]
[1755632433251,7.87430359,178.29,178.28,0.06]
[1755632433822,11.65129097,178.29,178.28,0.06]
[1755632434032,7.87430359,178.29,178.28,0.06]
[1755632434237,7.22430359,178.29,178.28,0.06]
[1755632434442,7.89430359,178.29,178.28,0.06]
[1755632435158,7.22430359,178.29,178.28,0.06]
[1755632435459,7.89430359,178.29,178.28,0.06]
[1755632436836,7.22430359,178.29,178.28,0.06]
[1755632437053,3.77698738,178.3,178.28,0.06]
[1755632437247,7.22430359,178.29,178.28,0.06]
[1755632437654,7.89430359,178.29,178.28,0.06]
[1755632437963,7.22430359,178.29,178.28,0.06]
[1755632438330,0.03,178.31,178.28,7.99430359]
[1755632438644,0.03,178.31,178.29,0.71]
[1755632438840,0.03,178.31,178.29,7.93430359]
[1755632439036,0.03,178.31,178.3,7.22430359]
[1755632439236,0.03,178.31,178.3,0.71]
[1755632440137,0.03,178.31,178.3,7.93430359]
[1755632440339,0.03,178.31,178.3,11.93526196]
[1755632441060,0.03,178.31,178.3,0.71]
[1755632442361,0.03,178.31,178.3,11.93526196]
[1755632442959,0.03,178.31,178.3,0.71]
[1755632443768,0.03,178.31,178.3,11.93526196]
[1755632444445,0.03,178.31,178.3,25.67301754]
[1755632444773,0.03,178.31,178.3,27.92052354]
[1755632446067,0.03,178.31,178.3,33.52904849]
[1755632446376,0.03,178.33,178.32,50.96301754]
[1755632446558,0.03,178.33,178.32,91.72301754]
[1755632446870,0.03,178.33,178.32,92.43301754]
[1755632447775,0.03,178.34,178.33,13.73775558]
[1755632448079,0.03,178.34,178.33,26.23377568]
[1755632448281,0.03,178.35,178.34,24.96301754]
[1755632448645,0.03,178.35,178.34,31.28028455]
[1755632450673,0.03,178.35,178.34,25.67301754]
[1755632451073,0.03,178.35,178.34,25.53085597]
[1755632451392,0.03,178.35,178.34,40.30559401]
[1755632451587,0.03,178.35,178.34,51.53085597]
[1755632451889,0.03,178.35,178.34,51.67301754]
[1755632452855,0.03,178.35,178.34,25.67301754]
[1755632453295,0.03,178.35,178.34,51.67301754]
[1755632453468,0.03,178.35,178.34,92.39301754]
[1755632454767,0.03,178.35,178.34,94.63976754]
[1755632458783,0.03,178.35,178.34,68.63976754]
[1755632460409,0.03,178.35,178.34,64.62378437]
[1755632461903,0.03,178.35,178.34,23.0516228]
[1755632462142,0.03,178.35,178.34,63.7516228]
[1755632462282,0.03,178.35,178.34,56.54234401]
[1755632462482,0.7,178.35,178.34,42.94675]
[1755632462709,0.7,178.35,178.34,40.7]
[1755632463093,0.03,178.35,178.34,47.90927879]
[1755632463495,0.03,178.35,178.34,62.35703437]
[1755632464200,0.03,178.35,178.34,61.64703437]
[1755632464813,0.03,178.35,178.34,62.30703437]
[1755632465405,0.03,178.35,178.34,61.64703437]
[1755632466401,0.03,178.35,178.34,63.89428937]
[1755632466604,0.03,178.35,178.34,47.90927879]
[1755632466811,0.03,178.35,178.34,40.7]
[1755632467015,0.03,178.35,178.34,47.90927879]
[1755632468391,0.7,178.35,178.34,40.7]
[1755632469120,0.03,178.35,178.34,40.7]
[1755632469321,0.7,178.35,178.34,47.90927879]
[1755632469492,26.0,178.33,178.32,0.06]
[1755632469695,7.87927879,178.33,178.28,0.06]
[1755632469892,7.20927879,178.29,178.28,0.06]
[1755632470515,7.81927879,178.29,178.28,0.06]
[1755632471093,20.8048728,178.27,178.25,0.06]
[1755632471404,26.0,178.24,178.17,40.74]
[1755632471610,7.20927879,178.22,178.17,40.74]
[1755632472087,7.69927879,178.22,178.17,40.74]
[1755632472417,11.73369962,178.22,178.17,40.74]
[1755632473225,11.24369962,178.23,178.17,41.4]
[1755632473438,0.49,178.22,178.17,52.64369962]
[1755632473648,0.49,178.22,178.17,51.98369962]
[1755632473811,11.73369962,178.22,178.17,40.74]
[1755632474329,11.73369962,178.22,178.2,26.0]
[1755632475915,11.73369962,178.22,178.17,66.74]
[1755632476812,11.73369962,178.22,178.17,40.74]
[1755632477155,11.73369962,178.22,178.17,0.06]
[1755632479224,37.73369962,178.22,178.17,0.06]
[1755632480804,48.97739924,178.22,178.17,0.06]
[1755632481042,11.24369962,178.18,178.17,0.06]